[Event "*** Titled Tuesday Blitz"]
[Site "Chess.com"]
[Date "2020.10.20"]
[Round "4"]
[White "atalz0"]
[Black "BikingBrian"]
[Result "1/2-1/2"]
[WhiteElo "2409"]
[BlackElo "2251"]
[TimeControl "180+1"]
[EndTime "10:42:39 PDT"]
[Termination "Game drawn - insufficient material"]

1. d4 {[%clk 0:02:31.9]} 1... Nf6 {[%clk 0:02:58.9]} 2. c4 {[%clk 0:02:31]} 2...
g6 {[%clk 0:02:59.3]} 3. f3 {[%clk 0:02:29.9]} 3... Bg7 {[%clk 0:02:58.9]} 4. e4
{[%clk 0:02:29.3]} 4... d6 {[%clk 0:02:59.2]} 5. Nc3 {[%clk 0:02:29.3]} 5... O-O
{[%clk 0:02:58.6]} 6. Be3 {[%clk 0:02:29.7]} 6... a6 {[%clk 0:02:58.8]} 7. Qd2
{[%clk 0:02:28.9]} 7... Nbd7 {[%clk 0:02:57.1]} 8. Nh3 {[%clk 0:02:22.8]} 8...
c6 {[%clk 0:02:51.9]} 9. a4 {[%clk 0:02:18.2]} 9... a5 {[%clk 0:02:30.3]} 10.
Be2 {[%clk 0:02:14]} 10... Nb8 {[%clk 0:02:30.3]} 11. Nf2 {[%clk 0:02:13.6]}
11... Na6 {[%clk 0:02:30]} 12. O-O {[%clk 0:02:13.2]} 12... Nb4 {[%clk
0:02:29.6]} 13. Rad1 {[%clk 0:02:10.1]} 13... Qc7 {[%clk 0:02:21.7]} 14. f4
{[%clk 0:02:10.2]} 14... e5 {[%clk 0:02:11.4]} 15. fxe5 {[%clk 0:01:48.3]} 15...
dxe5 {[%clk 0:02:11.3]} 16. d5 {[%clk 0:01:48.7]} 16... cxd5 {[%clk 0:02:08.1]}
17. cxd5 {[%clk 0:01:43.5]} 17... Bd7 {[%clk 0:01:59.9]} 18. d6 {[%clk
0:01:35.1]} 18... Qb8 {[%clk 0:01:47.9]} 19. Bb6 {[%clk 0:01:29.7]} 19... Rc8
{[%clk 0:01:43.8]} 20. Bb5 {[%clk 0:01:13.3]} 20... Bf8 {[%clk 0:01:25.7]} 21.
Qg5 {[%clk 0:01:04.1]} 21... Bg7 {[%clk 0:01:13.9]} 22. Nd3 {[%clk 0:00:48]}
22... h6 {[%clk 0:01:09.2]} 23. Qe3 {[%clk 0:00:28.4]} 23... Ng4 {[%clk
0:01:01.3]} 24. Qf3 {[%clk 0:00:27.1]} 24... Be6 {[%clk 0:00:44.2]} 25. d7
{[%clk 0:00:24.1]} 25... Rd8 {[%clk 0:00:40.2]} 26. Nc5 {[%clk 0:00:22.2]} 26...
Nf6 {[%clk 0:00:29.6]} 27. Nxe6 {[%clk 0:00:17.9]} 27... fxe6 {[%clk 0:00:30.5]}
28. Bxd8 {[%clk 0:00:13.3]} 28... Qxd8 {[%clk 0:00:30]} 29. Rd6 {[%clk
0:00:13.3]} 29... Nc2 {[%clk 0:00:26]} 30. Rxe6 {[%clk 0:00:09.1]} 30... Nd4
{[%clk 0:00:25.8]} 31. Qg3 {[%clk 0:00:09.3]} 31... Nxd7 {[%clk 0:00:23.9]} 32.
Rxg6 {[%clk 0:00:07.6]} 32... Qe7 {[%clk 0:00:21.4]} 33. Rxg7+ {[%clk
0:00:06.3]} 33... Qxg7 {[%clk 0:00:21.6]} 34. Qxg7+ {[%clk 0:00:06.9]} 34...
Kxg7 {[%clk 0:00:22.2]} 35. Bxd7 {[%clk 0:00:07.4]} 35... Rd8 {[%clk 0:00:21.7]}
36. Bb5 {[%clk 0:00:07.3]} 36... Ne6 {[%clk 0:00:19.1]} 37. Bc4 {[%clk
0:00:07.2]} 37... Nf4 {[%clk 0:00:18.9]} 38. g3 {[%clk 0:00:07.1]} 38... Nd3
{[%clk 0:00:18.2]} 39. Rd1 {[%clk 0:00:05.8]} 39... Rd4 {[%clk 0:00:16.4]} 40.
Bxd3 {[%clk 0:00:04.9]} 40... Rb4 {[%clk 0:00:16.7]} 41. Be2 {[%clk 0:00:04.5]}
41... Rxb2 {[%clk 0:00:17]} 42. Kf2 {[%clk 0:00:04.8]} 42... Rc2 {[%clk
0:00:17.3]} 43. Nd5 {[%clk 0:00:04.9]} 43... Ra2 {[%clk 0:00:17.4]} 44. Ne3
{[%clk 0:00:05]} 44... Rxa4 {[%clk 0:00:17.7]} 45. Nf5+ {[%clk 0:00:05.6]} 45...
Kg6 {[%clk 0:00:17.5]} 46. Rd7 {[%clk 0:00:06.3]} 46... Rxe4 {[%clk 0:00:16.7]}
47. Ne7+ {[%clk 0:00:04.9]} 47... Kf6 {[%clk 0:00:16.2]} 48. Nd5+ {[%clk
0:00:05.5]} 48... Ke6 {[%clk 0:00:16.4]} 49. Rd8 {[%clk 0:00:05.5]} 49... Rd4
{[%clk 0:00:15.9]} 50. Bf3 {[%clk 0:00:05.3]} 50... e4 {[%clk 0:00:15.8]} 51.
Bg4+ {[%clk 0:00:05.7]} 51... Ke5 {[%clk 0:00:15.9]} 52. Ne3 {[%clk 0:00:06]}
52... Rxd8 {[%clk 0:00:15.2]} 53. Nc4+ {[%clk 0:00:06]} 53... Kd4 {[%clk
0:00:14.9]} 54. Nxa5 {[%clk 0:00:06.1]} 54... e3+ {[%clk 0:00:15]} 55. Ke2
{[%clk 0:00:05.3]} 55... Ra8 {[%clk 0:00:15.6]} 56. Nxb7 {[%clk 0:00:05.3]}
56... Ra2+ {[%clk 0:00:15.5]} 57. Ke1 {[%clk 0:00:05.8]} 57... Kd3 {[%clk
0:00:15.7]} 58. Bf5+ {[%clk 0:00:05.5]} 58... Kc3 {[%clk 0:00:15.8]} 59. Nc5
{[%clk 0:00:05.1]} 59... Kd4 {[%clk 0:00:15.3]} 60. Nb3+ {[%clk 0:00:04.4]}
60... Ke5 {[%clk 0:00:15.6]} 61. Bd3 {[%clk 0:00:03.9]} 61... Rxh2 {[%clk
0:00:14.8]} 62. Nc1 {[%clk 0:00:03.5]} 62... Rg2 {[%clk 0:00:14.5]} 63. Ne2
{[%clk 0:00:03.2]} 63... h5 {[%clk 0:00:12.9]} 64. Ba6 {[%clk 0:00:02.2]} 64...
Rh2 {[%clk 0:00:11.9]} 65. Kf1 {[%clk 0:00:02.6]} 65... h4 {[%clk 0:00:12]} 66.
gxh4 {[%clk 0:00:02.5]} 66... Rxh4 {[%clk 0:00:11.9]} 67. Kg2 {[%clk 0:00:03.2]}
67... Ra4 {[%clk 0:00:11.7]} 68. Bd3 {[%clk 0:00:02.8]} 68... Ra3 {[%clk
0:00:11.8]} 69. Bc4 {[%clk 0:00:03]} 69... Rc3 {[%clk 0:00:11.9]} 70. Ba6 {[%clk
0:00:02.7]} 70... Rc2 {[%clk 0:00:11.8]} 71. Kf3 {[%clk 0:00:02.4]} 71... Rxe2
{[%clk 0:00:11.7]} 72. Kxe2 {[%clk 0:00:02.2]} 72... Kd4 {[%clk 0:00:12.6]} 73.
Bd3 {[%clk 0:00:02.6]} 73... Kc5 {[%clk 0:00:13.5]} 74. Bh7 {[%clk 0:00:03.1]}
74... Kb6 {[%clk 0:00:13.9]} 75. Kxe3 {[%clk 0:00:03.5]} 1/2-1/2

[Event "*** Titled Tuesday Blitz"]
[Site "Chess.com"]
[Date "2020.10.20"]
[Round "4"]
[White "Chessalary"]
[Black "WPWPWP-2015"]
[Result "1-0"]
[WhiteElo "2341"]
[BlackElo "2435"]
[TimeControl "180+1"]
[EndTime "10:42:44 PDT"]
[Termination "Chessalary won by resignation"]

1. d4 {[%clk 0:03:00.9]} 1... d5 {[%clk 0:02:54.7]} 2. c4 {[%clk 0:03:00.9]}
2... dxc4 {[%clk 0:02:54.6]} 3. e3 {[%clk 0:03:00.1]} 3... Nf6 {[%clk
0:02:53.7]} 4. Bxc4 {[%clk 0:03:00.3]} 4... e6 {[%clk 0:02:53.5]} 5. Nf3 {[%clk
0:02:58.1]} 5... a6 {[%clk 0:02:53]} 6. Nc3 {[%clk 0:02:57.8]} 6... c5 {[%clk
0:02:51.7]} 7. O-O {[%clk 0:02:55.6]} 7... Nc6 {[%clk 0:02:51.2]} 8. a4 {[%clk
0:02:51.8]} 8... cxd4 {[%clk 0:02:50.9]} 9. exd4 {[%clk 0:02:52.7]} 9... Be7
{[%clk 0:02:50.6]} 10. d5 {[%clk 0:02:51.4]} 10... exd5 {[%clk 0:02:48.6]} 11.
Nxd5 {[%clk 0:02:52.3]} 11... Nxd5 {[%clk 0:02:47.9]} 12. Bxd5 {[%clk
0:02:53.2]} 12... O-O {[%clk 0:02:47.8]} 13. Bxc6 {[%clk 0:02:47]} 13... bxc6
{[%clk 0:02:47.4]} 14. Be3 {[%clk 0:02:45.3]} 14... Qxd1 {[%clk 0:02:28.2]} 15.
Rfxd1 {[%clk 0:02:45.9]} 15... Bg4 {[%clk 0:02:27.5]} 16. Rac1 {[%clk
0:02:43.2]} 16... Rfc8 {[%clk 0:02:23.3]} 17. Bc5 {[%clk 0:02:38.2]} 17... Bf6
{[%clk 0:02:19.7]} 18. Bd4 {[%clk 0:02:37.4]} 18... Rab8 {[%clk 0:02:02.8]} 19.
Bxf6 {[%clk 0:02:33.1]} 19... gxf6 {[%clk 0:02:03.7]} 20. Rc2 {[%clk 0:02:17.6]}
20... Rb4 {[%clk 0:02:01.6]} 21. Rd4 {[%clk 0:02:12.7]} 21... Rxd4 {[%clk
0:01:56.3]} 22. Nxd4 {[%clk 0:02:13.6]} 22... Rd8 {[%clk 0:01:55.4]} 23. f3
{[%clk 0:01:49.6]} 23... Rxd4 {[%clk 0:01:48.2]} 24. fxg4 {[%clk 0:01:48.1]}
24... Rd6 {[%clk 0:01:23.7]} 25. b3 {[%clk 0:01:37.1]} 25... Kf8 {[%clk
0:01:18.5]} 26. Kf2 {[%clk 0:01:33.7]} 26... Ke7 {[%clk 0:01:15.9]} 27. Ke3
{[%clk 0:01:32.4]} 27... Re6+ {[%clk 0:01:14.8]} 28. Kd4 {[%clk 0:01:31.4]}
28... Kd6 {[%clk 0:01:14.2]} 29. b4 {[%clk 0:01:17.6]} 29... Re5 {[%clk
0:01:09.8]} 30. Rf2 {[%clk 0:00:55.8]} 30... Ke6 {[%clk 0:01:08.7]} 31. Rc2
{[%clk 0:00:53.4]} 31... Kd6 {[%clk 0:01:07]} 32. Rf2 {[%clk 0:00:53.9]} 32...
Rd5+ {[%clk 0:00:52.6]} 33. Kc4 {[%clk 0:00:49]} 33... Ke6 {[%clk 0:00:50.3]}
34. Re2+ {[%clk 0:00:47.8]} 34... Kd7 {[%clk 0:00:49]} 35. Rf2 {[%clk
0:00:46.9]} 35... Ke7 {[%clk 0:00:45]} 36. Rf5 {[%clk 0:00:43.3]} 36... Re5
{[%clk 0:00:34.9]} 37. h3 {[%clk 0:00:28.1]} 37... Ke6 {[%clk 0:00:29.5]} 38.
Rf4 {[%clk 0:00:25.6]} 38... Rd5 {[%clk 0:00:26.3]} 39. Re4+ {[%clk 0:00:25.2]}
39... Kd6 {[%clk 0:00:25.9]} 40. Rd4 {[%clk 0:00:25.7]} 40... Ke5 {[%clk
0:00:06]} 41. Rxd5+ {[%clk 0:00:08.5]} 41... cxd5+ {[%clk 0:00:06.9]} 42. Kd3
{[%clk 0:00:09.4]} 42... Ke6 {[%clk 0:00:07]} 43. Kd4 {[%clk 0:00:08.8]} 43...
Kd6 {[%clk 0:00:07.4]} 44. b5 {[%clk 0:00:09.7]} 44... axb5 {[%clk 0:00:07.2]}
45. axb5 {[%clk 0:00:10.6]} 45... h6 {[%clk 0:00:07]} 46. g3 {[%clk 0:00:09.7]}
46... Ke6 {[%clk 0:00:07.2]} 47. b6 {[%clk 0:00:09.6]} 47... Kd6 {[%clk
0:00:07.5]} 48. b7 {[%clk 0:00:10.4]} 48... Kc7 {[%clk 0:00:07.6]} 49. Kxd5
{[%clk 0:00:11]} 49... Kxb7 {[%clk 0:00:08]} 50. Ke4 {[%clk 0:00:11.5]} 50...
Kc6 {[%clk 0:00:07.3]} 51. Kf5 {[%clk 0:00:12.4]} 51... Kd5 {[%clk 0:00:07.5]}
52. Kxf6 {[%clk 0:00:13.3]} 52... Ke4 {[%clk 0:00:08.4]} 53. Kxf7 {[%clk
0:00:05.9]} 53... Kf3 {[%clk 0:00:08.6]} 54. Kg6 {[%clk 0:00:06.4]} 54... Kxg3
{[%clk 0:00:09]} 55. Kxh6 {[%clk 0:00:07.1]} 55... Kxh3 {[%clk 0:00:09.3]} 56.
g5 {[%clk 0:00:08]} 56... Kg4 {[%clk 0:00:09.9]} 57. g6 {[%clk 0:00:08.9]} 57...
Kf5 {[%clk 0:00:10.8]} 58. g7 {[%clk 0:00:09.7]} 58... Kf6 {[%clk 0:00:11.7]}
59. g8=Q {[%clk 0:00:10.3]} 59... Ke7 {[%clk 0:00:12.6]} 60. Qg6 {[%clk
0:00:11]} 60... Kd7 {[%clk 0:00:12.8]} 61. Kg5 {[%clk 0:00:11.9]} 61... Ke7
{[%clk 0:00:13.2]} 62. Qf6+ {[%clk 0:00:12.7]} 62... Ke8 {[%clk 0:00:13.2]} 63.
Kf5 {[%clk 0:00:13.6]} 63... Kd7 {[%clk 0:00:14]} 64. Ke5 {[%clk 0:00:14.5]}
64... Ke8 {[%clk 0:00:13.9]} 65. Kd5 {[%clk 0:00:15.4]} 65... Kd7 {[%clk
0:00:14.2]} 66. Qg7+ {[%clk 0:00:13.9]} 66... Kc8 {[%clk 0:00:13.7]} 67. Kc6
{[%clk 0:00:12.5]} 67... Kb8 {[%clk 0:00:14.6]} 1-0

[Event "*** Titled Tuesday Blitz"]
[Site "Chess.com"]
[Date "2020.10.20"]
[Round "4"]
[White "FMalexhdez"]
[Black "RamyresCoelho"]
[Result "1-0"]
[WhiteElo "2267"]
[BlackElo "2058"]
[TimeControl "180+1"]
[EndTime "10:42:59 PDT"]
[Termination "FMalexhdez won by checkmate"]

1. e4 {[%clk 0:03:00.9]} 1... c5 {[%clk 0:02:59.8]} 2. Nf3 {[%clk 0:03:00.6]}
2... d6 {[%clk 0:02:58.1]} 3. d4 {[%clk 0:03:00.2]} 3... cxd4 {[%clk 0:02:58.2]}
4. Nxd4 {[%clk 0:03:01]} 4... Nf6 {[%clk 0:02:58.6]} 5. Nc3 {[%clk 0:03:01.5]}
5... a6 {[%clk 0:02:59.2]} 6. h3 {[%clk 0:03:00.8]} 6... e6 {[%clk 0:02:59.3]}
7. g4 {[%clk 0:03:01.2]} 7... b5 {[%clk 0:02:56.2]} 8. g5 {[%clk 0:02:55]} 8...
Nfd7 {[%clk 0:02:55.9]} 9. a3 {[%clk 0:02:53.4]} 9... Bb7 {[%clk 0:02:56.3]} 10.
Bg2 {[%clk 0:02:53]} 10... Qc7 {[%clk 0:02:53.7]} 11. h4 {[%clk 0:02:49.6]}
11... Nc6 {[%clk 0:02:53.9]} 12. O-O {[%clk 0:02:42]} 12... Be7 {[%clk
0:02:46.4]} 13. Be3 {[%clk 0:02:31.7]} 13... Nde5 {[%clk 0:02:43]} 14. Nxc6
{[%clk 0:02:26]} 14... Bxc6 {[%clk 0:02:43.9]} 15. f4 {[%clk 0:02:15.3]} 15...
Nc4 {[%clk 0:02:44]} 16. Bc1 {[%clk 0:02:15.5]} 16... Qb6+ {[%clk 0:02:30.2]}
17. Kh1 {[%clk 0:02:14.5]} 17... Rc8 {[%clk 0:02:30.8]} 18. Qe2 {[%clk
0:02:14.1]} 18... Bb7 {[%clk 0:02:27.5]} 19. b3 {[%clk 0:02:01.2]} 19... Nxa3
{[%clk 0:02:23.5]} 20. Bxa3 {[%clk 0:01:59.6]} 20... Rxc3 {[%clk 0:02:23]} 21.
Bb2 {[%clk 0:01:58.1]} 21... Rc8 {[%clk 0:02:12.2]} 22. Bxg7 {[%clk 0:01:57.6]}
22... Rg8 {[%clk 0:02:12.1]} 23. Bb2 {[%clk 0:01:55.8]} 23... Qc7 {[%clk
0:02:08.3]} 24. Rf2 {[%clk 0:01:52.6]} 24... Kf8 {[%clk 0:01:50.5]} 25. Qh5
{[%clk 0:01:50.7]} 25... d5 {[%clk 0:01:40.5]} 26. f5 {[%clk 0:01:48.7]} 26...
Bc5 {[%clk 0:01:15]} 27. Rff1 {[%clk 0:01:26.7]} 27... e5 {[%clk 0:00:36.3]} 28.
exd5 {[%clk 0:01:21.7]} 28... Qd6 {[%clk 0:00:30.6]} 29. c4 {[%clk 0:01:15.2]}
29... bxc4 {[%clk 0:00:28.4]} 30. bxc4 {[%clk 0:01:14.8]} 30... Bd4 {[%clk
0:00:27.1]} 31. Ba3 {[%clk 0:01:11.2]} 31... Bc5 {[%clk 0:00:25.9]} 32. Bxc5
{[%clk 0:01:09.4]} 32... Rxc5 {[%clk 0:00:26.8]} 33. Rab1 {[%clk 0:00:50.5]}
33... Bc8 {[%clk 0:00:19]} 34. Qg4 {[%clk 0:00:46]} 34... h6 {[%clk 0:00:16.8]}
35. g6 {[%clk 0:00:44.5]} 35... Rxg6 {[%clk 0:00:15.6]} 36. Qe4 {[%clk
0:00:30.6]} 36... Rg3 {[%clk 0:00:10.5]} 37. Rf3 {[%clk 0:00:27.8]} 37... Rxf3
{[%clk 0:00:10.2]} 38. Bxf3 {[%clk 0:00:26]} 38... Qf6 {[%clk 0:00:07.5]} 39.
Rb8 {[%clk 0:00:22.6]} 39... Kg7 {[%clk 0:00:07.5]} 40. Qg4+ {[%clk 0:00:20.3]}
40... Kh7 {[%clk 0:00:06.6]} 41. Be2 {[%clk 0:00:06.2]} 41... Qxf5 {[%clk
0:00:03.3]} 42. Qxf5+ {[%clk 0:00:05.9]} 42... Bxf5 {[%clk 0:00:04.2]} 43. Rb7
{[%clk 0:00:05.2]} 43... Be4+ {[%clk 0:00:04.4]} 44. Kg1 {[%clk 0:00:04]} 44...
Kg6 {[%clk 0:00:05.3]} 45. Kf2 {[%clk 0:00:03.1]} 45... f5 {[%clk 0:00:05.8]}
46. Rb6+ {[%clk 0:00:02.8]} 46... Kg7 {[%clk 0:00:05.8]} 47. Rxa6 {[%clk
0:00:02.9]} 47... h5 {[%clk 0:00:04.1]} 48. d6 {[%clk 0:00:03.6]} 48... Rc8
{[%clk 0:00:03.8]} 49. Ra7+ {[%clk 0:00:03.8]} 49... Kf8 {[%clk 0:00:03.9]} 50.
d7 {[%clk 0:00:04.5]} 50... Rd8 {[%clk 0:00:04.3]} 51. c5 {[%clk 0:00:05.1]}
51... Ke7 {[%clk 0:00:05.2]} 52. Bb5 {[%clk 0:00:05.4]} 52... Bd5 {[%clk
0:00:04.3]} 53. c6 {[%clk 0:00:05.9]} 53... Bxc6 {[%clk 0:00:04.5]} 54. Bxc6
{[%clk 0:00:05.7]} 54... e4 {[%clk 0:00:05.4]} 55. Ke3 {[%clk 0:00:05.1]} 55...
Kf6 {[%clk 0:00:05.4]} 56. Bd5 {[%clk 0:00:04.6]} 56... Ke5 {[%clk 0:00:05.6]}
57. Bf7 {[%clk 0:00:04.2]} 57... f4+ {[%clk 0:00:06.5]} 58. Ke2 {[%clk 0:00:04]}
58... f3+ {[%clk 0:00:06.8]} 59. Ke3 {[%clk 0:00:03.8]} 59... Kd6 {[%clk
0:00:06.9]} 60. Be8 {[%clk 0:00:03.8]} 60... Ke7 {[%clk 0:00:06.5]} 61. Ra4
{[%clk 0:00:03.7]} 61... Kf6 {[%clk 0:00:05.4]} 62. Rxe4 {[%clk 0:00:04.3]}
62... Kf5 {[%clk 0:00:05.4]} 63. Rf4+ {[%clk 0:00:05]} 63... Ke6 {[%clk
0:00:04.9]} 64. Rxf3 {[%clk 0:00:05.9]} 64... Ke7 {[%clk 0:00:04.5]} 65. Rf4
{[%clk 0:00:06.4]} 65... Ke6 {[%clk 0:00:04.7]} 66. Rc4 {[%clk 0:00:06.9]} 66...
Ke7 {[%clk 0:00:05.6]} 67. Rc8 {[%clk 0:00:06.9]} 67... Rxc8 {[%clk 0:00:05.3]}
68. dxc8=Q {[%clk 0:00:05.5]} 68... Kf8 {[%clk 0:00:05.4]} 69. Qd7 {[%clk
0:00:06.2]} 69... Kg8 {[%clk 0:00:05]} 70. Qf7+ {[%clk 0:00:06.8]} 70... Kh8
{[%clk 0:00:05.7]} 71. Qxh5+ {[%clk 0:00:06.9]} 71... Kg8 {[%clk 0:00:06]} 72.
Qg6+ {[%clk 0:00:07.5]} 72... Kh8 {[%clk 0:00:06.9]} 73. Qf6+ {[%clk 0:00:07]}
73... Kg8 {[%clk 0:00:07.2]} 74. Bf7+ {[%clk 0:00:07.1]} 74... Kh7 {[%clk
0:00:07.3]} 75. Bg6+ {[%clk 0:00:07.2]} 75... Kh6 {[%clk 0:00:07.4]} 76. Bf5+
{[%clk 0:00:06.6]} 76... Kh5 {[%clk 0:00:08.3]} 77. Qg6+ {[%clk 0:00:06.5]}
77... Kxh4 {[%clk 0:00:08.2]} 78. Qg4# {[%clk 0:00:07]} 1-0

[Event "*** Titled Tuesday Blitz"]
[Site "Chess.com"]
[Date "2020.10.20"]
[Round "4"]
[White "PauloCesarCosta_sad"]
[Black "11kevin"]
[Result "0-1"]
[WhiteElo "2277"]
[BlackElo "2584"]
[TimeControl "180+1"]
[EndTime "10:43:01 PDT"]
[Termination "11kevin won on time"]

1. Nf3 {[%clk 0:03:00.9]} 1... Nf6 {[%clk 0:02:56.7]} 2. c4 {[%clk 0:03:00.5]}
2... e6 {[%clk 0:02:56.7]} 3. d4 {[%clk 0:02:59.9]} 3... d5 {[%clk 0:02:47.3]}
4. Nc3 {[%clk 0:02:59.3]} 4... Be7 {[%clk 0:02:40.7]} 5. Bg5 {[%clk 0:02:58.2]}
5... h6 {[%clk 0:02:39.8]} 6. Bh4 {[%clk 0:02:57.9]} 6... O-O {[%clk 0:02:39.7]}
7. e3 {[%clk 0:02:58]} 7... b6 {[%clk 0:02:39.9]} 8. cxd5 {[%clk 0:02:52.9]}
8... Nxd5 {[%clk 0:02:39.4]} 9. Bxe7 {[%clk 0:02:49.5]} 9... Qxe7 {[%clk
0:02:40.3]} 10. Nxd5 {[%clk 0:02:45.6]} 10... exd5 {[%clk 0:02:41.2]} 11. Be2
{[%clk 0:02:40.7]} 11... Be6 {[%clk 0:02:39.8]} 12. O-O {[%clk 0:02:40.5]} 12...
c5 {[%clk 0:02:39.2]} 13. Qd2 {[%clk 0:02:33.8]} 13... Nd7 {[%clk 0:02:29.8]}
14. b3 {[%clk 0:02:31.7]} 14... Nf6 {[%clk 0:02:20.8]} 15. dxc5 {[%clk
0:02:13.7]} 15... Ne4 {[%clk 0:02:15.9]} 16. Qc2 {[%clk 0:02:04]} 16... bxc5
{[%clk 0:02:12.8]} 17. Bd3 {[%clk 0:02:03.9]} 17... f5 {[%clk 0:02:10.4]} 18.
Rac1 {[%clk 0:01:57.2]} 18... Rfc8 {[%clk 0:02:04.2]} 19. Rfd1 {[%clk
0:01:51.8]} 19... a5 {[%clk 0:02:02.9]} 20. Bb5 {[%clk 0:01:45.9]} 20... Nd6
{[%clk 0:01:58.3]} 21. Ba4 {[%clk 0:01:39]} 21... Bf7 {[%clk 0:01:51.4]} 22. Qb2
{[%clk 0:01:32.6]} 22... Rab8 {[%clk 0:01:30.1]} 23. Qc3 {[%clk 0:01:24.7]}
23... Rb4 {[%clk 0:01:22.7]} 24. a3 {[%clk 0:01:18.4]} 24... Ne4 {[%clk
0:01:20.5]} 25. Qe5 {[%clk 0:01:12.3]} 25... Rb7 {[%clk 0:00:55.9]} 26. Qxf5
{[%clk 0:01:03.4]} 26... Be6 {[%clk 0:00:56.1]} 27. Qe5 {[%clk 0:00:58.8]} 27...
Qf7 {[%clk 0:00:54.9]} 28. Rc2 {[%clk 0:00:57.7]} 28... Re7 {[%clk 0:00:46.2]}
29. b4 {[%clk 0:00:52.3]} 29... axb4 {[%clk 0:00:43.4]} 30. axb4 {[%clk
0:00:53.2]} 30... c4 {[%clk 0:00:29.1]} 31. Bb5 {[%clk 0:00:45.9]} 31... c3
{[%clk 0:00:20.3]} 32. Qd4 {[%clk 0:00:41.7]} 32... Qh5 {[%clk 0:00:17.3]} 33.
Be2 {[%clk 0:00:36.4]} 33... Qe8 {[%clk 0:00:17]} 34. b5 {[%clk 0:00:31.9]}
34... Rb8 {[%clk 0:00:16.2]} 35. Ne5 {[%clk 0:00:27.3]} 35... Qd8 {[%clk
0:00:15.5]} 36. Nc6 {[%clk 0:00:26.7]} 36... Qc7 {[%clk 0:00:15.8]} 37. Nxb8
{[%clk 0:00:26]} 37... Qxb8 {[%clk 0:00:16]} 38. f3 {[%clk 0:00:21]} 38... Nd6
{[%clk 0:00:15.3]} 39. Qxc3 {[%clk 0:00:19]} 39... Nxb5 {[%clk 0:00:15.2]} 40.
Bxb5 {[%clk 0:00:18.3]} 40... Qxb5 {[%clk 0:00:16.1]} 41. Qd3 {[%clk 0:00:15.7]}
41... Qb6 {[%clk 0:00:15.9]} 42. Rcd2 {[%clk 0:00:13.5]} 42... Bf7 {[%clk
0:00:15.7]} 43. Re1 {[%clk 0:00:08.9]} 43... Qc5 {[%clk 0:00:15.6]} 44. Qd4
{[%clk 0:00:07.8]} 44... Qa5 {[%clk 0:00:15.7]} 45. Red1 {[%clk 0:00:06.3]}
45... Qb5 {[%clk 0:00:15.3]} 46. Qd3 {[%clk 0:00:06]} 46... Qc5 {[%clk
0:00:15.3]} 47. Qd4 {[%clk 0:00:06]} 47... Qa3 {[%clk 0:00:15.6]} 48. Rd3 {[%clk
0:00:04.4]} 48... Qa2 {[%clk 0:00:16]} 49. h3 {[%clk 0:00:04.2]} 49... Qe2
{[%clk 0:00:15.7]} 50. R1d2 {[%clk 0:00:02.4]} 50... Qe1+ {[%clk 0:00:16]} 51.
Kh2 {[%clk 0:00:02.2]} 51... Qc1 {[%clk 0:00:16.6]} 52. Rd1 {[%clk 0:00:02.3]}
52... Qc7+ {[%clk 0:00:17.1]} 53. g3 {[%clk 0:00:01.6]} 53... Qc6 {[%clk
0:00:17.3]} 54. R1d2 {[%clk 0:00:02.1]} 54... Rb7 {[%clk 0:00:17.4]} 55. h4
{[%clk 0:00:02.4]} 55... Rb5 {[%clk 0:00:17.5]} 56. Rd1 {[%clk 0:00:02.4]} 56...
Rc5 {[%clk 0:00:17.8]} 57. R1d2 {[%clk 0:00:02.6]} 57... Rc4 {[%clk 0:00:18.3]}
58. Qe5 {[%clk 0:00:01.5]} 58... Qd7 {[%clk 0:00:18.7]} 59. Rd4 {[%clk
0:00:01.8]} 59... Rc3 {[%clk 0:00:18.6]} 60. R4d3 {[%clk 0:00:02]} 60... Rc4
{[%clk 0:00:18]} 61. Rd4 {[%clk 0:00:02.4]} 61... Rc1 {[%clk 0:00:17.7]} 62.
R4d3 {[%clk 0:00:02.6]} 62... Qb5 {[%clk 0:00:17.8]} 63. Rxd5 {[%clk 0:00:02.3]}
63... Qf1 {[%clk 0:00:15.8]} 64. Rd8+ {[%clk 0:00:01.8]} 64... Kh7 {[%clk
0:00:16.1]} 65. Qe4+ {[%clk 0:00:02.5]} 65... g6 {[%clk 0:00:14.8]} 66. Rh8+
{[%clk 0:00:02]} 66... Kxh8 {[%clk 0:00:14.1]} 67. Qa8+ {[%clk 0:00:01.4]} 67...
Kh7 {[%clk 0:00:13.7]} 68. Qh8+ {[%clk 0:00:01.1]} 68... Kxh8 {[%clk 0:00:13.7]}
69. Rd8+ {[%clk 0:00:02]} 69... Kg7 {[%clk 0:00:14]} 70. Rg8+ {[%clk 0:00:02.2]}
70... Kxg8 {[%clk 0:00:14.5]} 0-1